bitfinex-derivatives/quotes_BTCF0:USTF0_20241208
["timestamp","ask_amount","ask_price","bid_price","bid_amount"]
[1733674587397,0.20970778,100000.0,99999.0,0.05309564]
[1733674587600,0.21670778,100000.0,99999.0,0.05409564]
[1733674588097,0.21670778,100000.0,99999.0,0.05509564]
[1733674588098,0.22170778,100000.0,99999.0,0.05509564]
[1733674588498,0.10180293,100000.0,99999.0,0.05509564]
[1733674588701,0.22170778,100000.0,99999.0,0.05509564]
[1733674588895,0.10180293,100000.0,99999.0,0.05509564]
[1733674589299,0.10180293,100000.0,99999.0,0.05509566]
[1733674589598,0.26667778,100000.0,99999.0,0.01012466]
[1733674590001,0.22170778,100000.0,99999.0,0.01012466]
[1733674590203,0.13198939,100000.0,99999.0,0.01012466]
[1733674590506,0.2666246,100000.0,99999.0,0.01012466]
[1733674590691,0.2666246,100000.0,99999.0,0.00512487]
[1733674591095,0.17695939,100000.0,99999.0,0.00512487]
[1733674592106,0.14217894,100000.0,99999.0,0.00512487]
[1733674592293,0.29206024,100000.0,99999.0,0.00512487]
[1733674592495,0.14217894,100000.0,99999.0,0.00512487]
[1733674593109,0.18714894,100000.0,99999.0,0.00512487]
[1733674593399,0.54794894,100000.0,99999.0,0.00512487]
[1733674593601,0.044975,99989.0,99988.0,0.0003582]
[1733674593902,0.044979,99981.0,99980.0,7.439e-05]
[1733674594107,0.49544707,99981.0,99980.0,7.439e-05]
[1733674594411,0.405779,99981.0,99980.0,7.439e-05]
[1733674595104,0.52532658,99981.0,99980.0,7.439e-05]
[1733674595306,0.52932658,99981.0,99980.0,7.439e-05]
[1733674595508,0.409779,99981.0,99980.0,7.439e-05]
[1733674596416,0.3648,99981.0,99973.0,0.04395639]
[1733674596602,0.044982,99974.0,99973.0,0.04395639]
[1733674597005,0.3775778,99981.0,99973.0,0.04395639]
[1733674597206,0.28977571,100010.0,99973.0,0.04395639]
[1733674597516,0.37469835,100030.0,99973.0,0.04395639]
[1733674597718,0.3921,140040.0,99973.0,0.04395639]
[1733674597719,0.18791943,100100.0,100020.0,0.4986]
[1733674597916,0.33608,100180.0,100150.0,0.044901]
[1733674598107,0.69688,100180.0,100150.0,0.405701]
[1733674598321,0.99688,100180.0,100150.0,0.58300011]
[1733674598620,0.01958059,100170.0,100150.0,3.72776212]
[1733674598818,0.01958059,100170.0,100150.0,5.56360881]
[1733674599015,0.01958059,100170.0,100150.0,5.56345211]
[1733674599215,0.01958059,100170.0,100150.0,5.83917133]
[1733674599418,0.34597461,100180.0,100160.0,0.3608]
[1733674599617,0.33604,100180.0,100170.0,1.01646488]
[1733674599818,0.35647462,100180.0,100170.0,5.02842345]
[1733674600025,0.35647462,100180.0,100170.0,4.37275857]
[1733674600218,0.71727462,100180.0,100170.0,4.37275857]
[1733674600416,1.06216362,100180.0,100170.0,5.67109561]
[1733674600617,0.56601419,100180.0,100170.0,5.39639266]
[1733674600830,0.56601419,100180.0,100110.0,0.3917]
[1733674600831,0.56597419,100180.0,100110.0,0.3917]
[1733674601025,0.56597419,100180.0,100100.0,0.044924]
[1733674601026,0.01,100110.0,100100.0,0.044924]
[1733674601327,0.01,100110.0,100030.0,2.15492383]
[1733674601328,0.01,100100.0,100030.0,2.15492383]
[1733674601517,0.3608,100060.0,100050.0,0.044948]
[1733674601824,0.7216,100060.0,100050.0,1.546428]
[1733674602017,0.185766,100060.0,100050.0,1.9912312]
[1733674602222,0.3608,100080.0,100050.0,1.9912312]
[1733674602223,0.3608,100080.0,100070.0,0.044939]
[1733674602624,0.37092312,100090.0,100080.0,0.044934]
[1733674602830,0.73172312,100090.0,100080.0,0.044934]
[1733674603526,0.73172312,100090.0,100080.0,0.14484907]
[1733674604226,0.73172312,100090.0,100080.0,0.14584907]
[1733674605630,0.73172312,100090.0,100080.0,0.00412213]
[1733674605832,0.73272312,100090.0,100080.0,0.00412213]
[1733674606022,0.76765312,100090.0,100080.0,0.00412217]
[1733674606221,0.76765312,100090.0,100080.0,0.001]
[1733674606423,0.73272312,100090.0,100080.0,0.001]
[1733674606624,1.02708861,100090.0,100080.0,1.545934]
[1733674607937,1.02708861,100090.0,100080.0,1.501]
[1733674608640,1.02708861,100090.0,100070.0,0.064938]
[1733674608842,1.27627982,100080.0,100070.0,0.06806058]
[1733674609134,0.62578325,100080.0,100070.0,0.04806058]
[1733674609530,0.62578325,100080.0,100070.0,0.04802058]
[1733674609829,0.62578325,100080.0,100070.0,1.501]
[1733674610633,0.62678325,100080.0,100070.0,1.5]
[1733674610935,0.62678325,100080.0,100060.0,0.064943]
[1733674611132,1.87781192,100070.0,100060.0,0.0680658]
[1733674611335,0.65538731,100070.0,100060.0,0.0480658]
[1733674611638,0.92058242,100070.0,100060.0,0.0480658]
[1733674611937,0.86172436,100070.0,100050.0,0.02]
[1733674612141,0.67491993,100060.0,100050.0,0.02499655]
[1733674612336,0.3608,100060.0,100050.0,0.14987459]
[1733674612939,0.3608,100060.0,100050.0,1.64987459]
[1733674613848,0.3608,100060.0,100050.0,1.65487459]
[1733674614540,0.3608,100060.0,100050.0,0.005]
[1733674614746,0.3608,100060.0,100050.0,0.049948]
[1733674614932,0.3608,100060.0,100050.0,0.14989303]
[1733674615135,0.3608,100060.0,100050.0,0.049948]
[1733674615443,0.3608,100060.0,100050.0,0.15089303]
[1733674615633,0.3608,100060.0,100050.0,1.65089303]
[1733674617042,0.3608,100070.0,100060.0,0.044943]
[1733674617234,0.3608,100070.0,100060.0,0.344943]
[1733674617235,0.53782221,100070.0,100060.0,0.344943]
[1733674617640,0.53782221,100070.0,100060.0,0.44488803]
[1733674617842,0.3608,100070.0,100060.0,0.44488803]
[1733674618337,0.3608,100070.0,100060.0,0.44588803]
[1733674618542,0.3608,100070.0,100060.0,0.26603557]
[1733674618847,0.3608,100070.0,100060.0,0.14588803]
[1733674619244,0.3618,100070.0,100060.0,0.44588803]
[1733674621043,0.3618,100070.0,100060.0,1.94588803]
[1733674622041,0.3618,100070.0,100060.0,1.9462403]
[1733674622042,0.53882221,100070.0,100060.0,1.9462403]
[1733674622943,0.53882221,100070.0,100060.0,1.94659284]
[1733674623141,0.3618,100070.0,100060.0,1.94624067]
[1733674623346,0.17702221,100080.0,100070.0,0.044939]
[1733674623546,0.23211761,100080.0,100070.0,0.04529167]
[1733674624047,0.59291761,100080.0,100070.0,0.14834869]
[1733674624248,0.17702221,100080.0,100070.0,0.14834869]
[1733674624547,0.49971031,100080.0,100060.0,0.04567302]
[1733674624744,0.59056792,100070.0,100060.0,0.08997602]
[1733674624943,0.53862071,100070.0,100060.0,0.15490107]
[1733674625341,0.57042071,100070.0,100060.0,0.15989687]
[1733674625547,0.3926,100070.0,100060.0,1.65989687]
[1733674626451,0.83462587,100070.0,100060.0,1.66089687]
[1733674627438,0.76323956,100070.0,100060.0,1.55093935]
[1733674627850,0.80817856,100070.0,100060.0,1.56093575]
[1733674628147,0.81817856,100070.0,100060.0,1.56093575]
[1733674628443,1.08337367,100070.0,100060.0,1.5559394]
[1733674628747,0.84864442,100070.0,100060.0,1.5549394]
[1733674628936,0.84864442,100070.0,100060.0,1.5499394]
[1733674629136,1.08707239,100070.0,100060.0,1.5509394]
[1733674629341,0.83864442,100070.0,100060.0,1.5059964]
[1733674629549,0.86803662,100070.0,100060.0,0.0063528]
[1733674629751,0.01,100060.0,100050.0,0.079946]
[1733674629951,1.07196133,100060.0,100050.0,0.044946]
[1733674630136,0.78931049,100060.0,100050.0,0.044946]
[1733674630552,0.81913802,100060.0,100050.0,1.544946]
[1733674631042,1.11372533,100060.0,100050.0,1.545946]
[1733674631239,1.11372533,100060.0,100050.0,1.550946]
[1733674631442,0.84524062,100060.0,100050.0,1.550946]
[1733674631853,0.84524062,100060.0,100050.0,0.006]
[1733674632145,0.84524062,100060.0,100050.0,0.050945]
[1733674632347,1.11425882,100060.0,100050.0,0.006]
[1733674632648,1.11518457,100060.0,100050.0,0.049948]
[1733674632846,1.11518457,100060.0,100050.0,0.005]
[1733674632847,0.82059726,100060.0,100050.0,0.005]
[1733674633244,1.11518457,100060.0,100050.0,0.005]
[1733674633752,0.044948,100050.0,100040.0,1.579951]
[1733674633949,0.405748,100050.0,100040.0,1.544951]
[1733674634250,1.44952367,100050.0,100040.0,1.56434409]
[1733674634445,1.44952367,100050.0,100040.0,1.544951]
[1733674634446,0.77967341,100050.0,100040.0,1.544951]
[1733674634847,0.78967341,100050.0,100040.0,1.544951]
[1733674635054,1.14748957,100050.0,100040.0,1.5193838]
[1733674635355,0.87854562,100050.0,100040.0,1.50035687]
[1733674635654,1.14731466,100050.0,100040.0,1.50035687]
[1733674636339,1.14731933,100050.0,100040.0,1.50035687]
[1733674636651,1.14731933,100050.0,100040.0,0.00348086]
[1733674636853,1.09154865,100050.0,100040.0,0.00348086]
[1733674637654,1.09154865,100050.0,100040.0,1.50312399]
[1733674637655,0.82277494,100050.0,100040.0,1.50312399]
[1733674637849,0.78682694,100050.0,100040.0,1.54907599]
[1733674638050,0.78682694,100050.0,100040.0,1.64938788]
[1733674638051,0.3708,100050.0,100040.0,1.64938788]
[1733674638351,0.54482212,100050.0,100040.0,1.64803101]
[1733674638552,0.55382212,100050.0,100040.0,1.64803101]
[1733674638750,0.55382212,100050.0,100040.0,1.66734047]
[1733674638945,0.55382212,100050.0,100040.0,1.66728271]
[1733674639454,0.70299102,100050.0,100040.0,1.66728271]
[1733674639755,0.70299102,100050.0,100040.0,1.68215827]
[1733674640344,0.70299102,100050.0,100040.0,1.66290657]
[1733674640656,0.5239689,100050.0,100040.0,1.68214378]
[1733674640954,0.5239689,100050.0,100040.0,1.66290657]
[1733674641152,0.70299102,100050.0,100040.0,1.68214222]
[1733674642357,0.5239689,100050.0,100040.0,1.68214222]
[1733674642547,0.5239689,100050.0,100040.0,0.18214222]
[1733674643055,0.5239689,100050.0,100040.0,1.68214222]
[1733674643555,0.5239689,100050.0,100040.0,1.66290657]
[1733674643947,0.5239689,100050.0,100040.0,1.6821744]
[1733674644354,0.73368043,100050.0,100040.0,0.08222907]
[1733674644548,0.73368043,100050.0,100040.0,0.07235049]
[1733674644745,0.58585831,100050.0,100040.0,0.07235049]
[1733674644949,0.58585831,100050.0,100040.0,1.57235049]
[1733674645144,0.79475125,100050.0,100040.0,1.55307297]
[1733674645657,0.58585831,100050.0,100040.0,1.55307297]
[1733674645851,0.79475125,100050.0,100040.0,1.55307297]
[1733674646055,0.79475125,100050.0,100040.0,0.044952]
[1733674646458,0.76486802,100050.0,100040.0,0.044952]
[1733674646851,0.76486802,100050.0,100030.0,0.07430271]
[1733674647051,0.54266894,100040.0,100030.0,0.07430271]
[1733674647261,0.54266894,100040.0,100030.0,0.14925773]
[1733674647562,0.54266894,100040.0,100030.0,1.64925773]
[1733674648258,0.54666894,100040.0,100030.0,1.64925773]
[1733674649360,0.54666894,100040.0,100030.0,1.65325773]
[1733674649361,0.54266894,100040.0,100030.0,1.65325773]
[1733674649573,0.54266894,100040.0,100030.0,1.67269751]
[1733674649755,0.67757925,100040.0,100030.0,1.67269751]
[1733674650349,0.68057925,100040.0,100030.0,1.67269751]
[1733674650555,0.69057925,100040.0,100030.0,1.67269751]
[1733674650952,0.69057925,100040.0,100030.0,1.57274249]
[1733674651154,0.68757925,100040.0,100030.0,1.57374249]
[1733674651557,0.73253125,100040.0,100030.0,1.57374249]
[1733674652259,0.68757925,100040.0,100030.0,1.57374249]
[1733674652456,0.68757925,100040.0,100030.0,1.56974249]
[1733674652961,0.68757925,100040.0,100030.0,1.55030271]
[1733674653357,0.19286894,100040.0,100030.0,1.54930271]
[1733674653554,0.04144794,100040.0,100030.0,1.94926772]
[1733674653862,0.05044794,100050.0,100040.0,0.044952]
[1733674654056,0.01,100050.0,100040.0,0.06427833]
[1733674654461,0.3708,100050.0,100040.0,1.66423335]
[1733674655258,0.58100971,100070.0,100060.0,0.044943]
[1733674655467,0.71592002,100070.0,100060.0,0.044943]
[1733674655862,0.58100971,100070.0,100060.0,0.044943]
[1733674656058,0.58100971,100070.0,100060.0,0.04993973]
[1733674656356,0.22020971,100070.0,100060.0,0.04993973]
[1733674656557,0.0412,100070.0,100060.0,0.04993973]
[1733674657559,0.0532,100070.0,100060.0,0.05093973]
[1733674657763,0.012,100070.0,100060.0,0.15087477]
[1733674657962,0.3728,100070.0,100060.0,0.15399771]
[1733674658169,1e-06,100070.0,100060.0,0.83384084]
[1733674658663,1e-06,100070.0,100060.0,0.84509771]
[1733674659060,1e-06,100070.0,100060.0,0.85201743]
[1733674659266,0.17900971,100110.0,100090.0,0.04493]
[1733674659470,0.53980971,100120.0,100110.0,0.044921]
[1733674659769,0.53980971,100120.0,100110.0,0.04804394]
[1733674659770,0.3708,100120.0,100110.0,0.04804394]
[1733674659973,0.50571031,100120.0,100110.0,1.54804394]
[1733674660158,0.50571031,100120.0,100110.0,1.54813812]
[1733674660360,0.54062631,100120.0,100110.0,1.54813812]
[1733674660566,0.54062631,100120.0,100110.0,9.418e-05]
[1733674660765,0.54062631,100120.0,100110.0,0.00109418]
[1733674661156,0.71963602,100120.0,100110.0,0.04913694]
[1733674661362,0.50571031,100120.0,100110.0,0.05413087]
[1733674661560,0.3608,100120.0,100110.0,0.04913694]
[1733674661860,0.37089556,100130.0,100110.0,0.04913694]
[1733674661861,0.36089556,100130.0,100120.0,0.044916]
[1733674662065,0.36089556,100130.0,100120.0,0.0530318]
[1733674662370,9.556e-05,100130.0,100120.0,0.0530318]
[1733674662565,9.556e-05,100130.0,100120.0,0.15291693]
[1733674662865,9.556e-05,100130.0,100120.0,0.51371693]
[1733674663061,9.556e-05,100130.0,100120.0,0.50760113]
[1733674663266,5.6e-07,100130.0,100120.0,0.81571407]
[1733674664059,5.6e-07,100130.0,100120.0,0.51571407]
[1733674664271,5.6e-07,100130.0,100120.0,0.51771407]
[1733674664667,5.6e-07,100130.0,100120.0,0.15691407]
[1733674664860,0.36080056,100130.0,100120.0,0.15691407]
[1733674665368,0.36080056,100130.0,100120.0,0.15692149]
[1733674665868,0.36080056,100130.0,100120.0,0.16591457]
[1733674665869,0.36180056,100130.0,100120.0,0.16591457]
[1733674666066,0.00100056,100130.0,100120.0,0.16591457]
[1733674666268,5.6e-07,100130.0,100120.0,0.45691457]
[1733674666466,5.6e-07,100130.0,100120.0,0.46191457]
[1733674666662,5.6e-07,100130.0,100120.0,1.96191457]
[1733674668168,5.6e-07,100130.0,100120.0,2.32271457]
[1733674668571,0.3608,100150.0,100120.0,2.37163057]
[1733674668760,0.4345,100160.0,100140.0,0.044907]
[1733674668962,0.3608,100150.0,100140.0,0.07302736]
[1733674669165,0.3608,100150.0,100140.0,0.04802736]
[1733674669465,0.3608,100150.0,100140.0,0.14790251]
[1733674669664,0.3618,100150.0,100140.0,0.14790251]
[1733674670168,0.3608,100150.0,100140.0,0.14790251]
[1733674670468,0.0737,100160.0,100150.0,0.044903]
[1733674670666,0.4345,100160.0,100150.0,0.044903]
[1733674670967,0.0737,100160.0,100150.0,0.044903]
[1733674671169,0.0737,100160.0,100150.0,1.6447582]
[1733674671980,0.0767,100160.0,100150.0,0.1478781]
[1733674672265,0.0787,100160.0,100150.0,0.1478781]
[1733674673262,0.0787,100160.0,100150.0,0.1447582]
[1733674673459,0.015,100160.0,100150.0,0.14787806]
[1733674673664,0.005,100160.0,100150.0,0.14787806]
[1733674674067,0.005,100160.0,100150.0,0.51366956]
[1733674674567,0.005,100160.0,100150.0,0.15286956]
[1733674674568,0.13991031,100160.0,100150.0,0.15286956]
[1733674674765,0.53131031,100160.0,100150.0,0.14787806]
[1733674674969,0.52831031,100160.0,100150.0,0.1457582]
[1733674675267,0.52631031,100160.0,100150.0,0.1457582]
[1733674675566,0.52631031,100160.0,100150.0,0.15287812]
[1733674675967,0.3914,100160.0,100150.0,0.15287812]
[1733674676161,0.3914,100160.0,100150.0,0.14887812]
[1733674676373,0.3914,100160.0,100150.0,0.15691653]
[1733674676566,0.3608,100170.0,100160.0,0.044898]
[1733674676869,0.13491031,100170.0,100160.0,0.044898]
[1733674677070,0.49571031,100170.0,100160.0,0.044898]
[1733674677375,0.49571031,100170.0,100160.0,0.14474323]
[1733674678071,0.49571031,100170.0,100160.0,1.64364323]
[1733674678269,0.49571031,100170.0,100160.0,0.14364323]
[1733674678672,0.49571031,100170.0,100160.0,0.14676302]
[1733674679060,0.49571031,100170.0,100160.0,0.14776302]
[1733674679772,0.49571031,100170.0,100160.0,0.04791779]
[1733674680164,0.54060431,100170.0,100160.0,0.04791779]
[1733674680565,0.01,100160.0,100140.0,0.04500942]
[1733674680772,0.0304,100150.0,100140.0,0.05000116]
[1733674681075,0.4238,100150.0,100140.0,0.14983643]
[1733674681668,0.4238,100150.0,100140.0,1.64983643]
[1733674681872,0.55871031,100150.0,100140.0,1.65483643]
[1733674682073,0.55871031,100150.0,100140.0,1.66289452]
[1733674682474,0.55871031,100150.0,100140.0,1.65789452]
[1733674682673,0.61361331,100150.0,100140.0,1.65483643]
[1733674682876,0.61361331,100150.0,100140.0,1.55500116]
[1733674683177,0.61361331,100150.0,100140.0,0.007]
[1733674683369,0.61361331,100150.0,100140.0,0.044904]
[1733674683571,0.76189453,100150.0,100130.0,0.00149778]
[1733674683877,0.3608,100140.0,100130.0,0.04640978]
[1733674684078,0.3608,100140.0,100130.0,1.54640978]
[1733674684278,0.49571031,100140.0,100130.0,1.54651098]
[1733674685573,0.68889853,100140.0,100130.0,1.54651098]
[1733674685974,0.86716825,100140.0,100130.0,1.54651098]
[1733674686371,0.8674846,100140.0,100130.0,1.5001012]
[1733674686568,0.71888703,100140.0,100130.0,1.5001012]
[1733674687081,0.54161731,100140.0,100130.0,1.5001012]
[1733674687274,0.74959866,100140.0,100130.0,1.5001012]
[1733674687671,0.98729163,100140.0,100130.0,1.5001012]
[1733674688075,0.74959866,100140.0,100130.0,1.5001012]
[1733674688284,0.74859866,100140.0,100130.0,1.5001012]
[1733674688473,0.75459866,100140.0,100130.0,1.5001012]
[1733674688975,1.05459866,100140.0,100130.0,1.5001012]
[1733674689178,1.08231028,100140.0,100130.0,1.5011012]
[1733674689477,0.94739997,100140.0,100130.0,0.0011012]
[1733674689684,0.044916,100120.0,100110.0,0.044918]
[1733674689879,0.94532004,100120.0,100110.0,0.044918]
[1733674690270,1.04122004,100120.0,100110.0,0.044918]
[1733674690476,1.04122004,100120.0,100110.0,1.544918]
[1733674690875,1.04122004,100120.0,100110.0,1.5]
[1733674691582,0.862416,100120.0,100110.0,1.5]
[1733674691785,1.07102072,100120.0,100110.0,1.5]
[1733674692172,0.862416,100120.0,100110.0,1.5]
[1733674692581,0.866416,100120.0,100110.0,1.50312172]
[1733674692771,1.07502072,100120.0,100110.0,1.50312172]
[1733674692979,1.07702072,100120.0,100110.0,1.50312172]
[1733674693179,0.868416,100120.0,100110.0,1.50811657]
[1733674694378,1.0470576,100120.0,100110.0,1.55303757]
[1733674694683,1.0570576,100120.0,100110.0,1.55303757]
[1733674695188,1.20588117,100120.0,100110.0,1.55303757]
[1733674697485,1.20588117,100120.0,100110.0,1.5]
[1733674697683,1.20588117,100120.0,100110.0,1.50811593]
[1733674697884,1.0570576,100120.0,100110.0,1.50811593]
[1733674698386,1.0570576,100120.0,100110.0,0.00811593]
[1733674698590,1.0530576,100120.0,100110.0,0.00811593]
[1733674698794,0.044921,100110.0,100100.0,0.044924]
[1733674699091,0.405721,100110.0,100100.0,0.044924]
[1733674699390,0.405721,100110.0,100100.0,1.544924]
[1733674705791,0.55444724,100110.0,100100.0,1.544924]
[1733674706091,0.55444724,100110.0,100100.0,0.044924]
[1733674706092,0.3608,100110.0,100100.0,0.044924]
[1733674706297,0.405721,100110.0,100100.0,0.044924]
[1733674706499,0.405721,100110.0,100100.0,1.544924]
[1733674707191,0.405721,100110.0,100100.0,1.545924]
[1733674707385,0.405721,100110.0,100100.0,1.549924]
[1733674708095,0.766521,100110.0,100100.0,1.549924]
[1733674708489,0.91524724,100110.0,100100.0,1.549924]
[1733674708689,0.91524724,100110.0,100100.0,1.55491866]
[1733674709798,0.19364724,100110.0,100100.0,1.55491866]
[1733674709998,0.91524724,100110.0,100100.0,1.55391866]
[1733674710904,0.91524724,100110.0,100100.0,1.55304032]
[1733674711089,0.9451626,100110.0,100100.0,0.05304032]
[1733674711701,0.9451626,100110.0,100100.0,1.55304032]
[1733674711894,1.09442743,100110.0,100100.0,1.55304032]
[1733674712200,0.9002416,100110.0,100100.0,1.55304032]
[1733674713494,0.9002416,100110.0,100100.0,1.55804032]
[1733674713695,0.9002416,100110.0,100100.0,1.55694032]
[1733674717091,0.9002416,100110.0,100100.0,1.56518721]
[1733674719189,0.7216,100110.0,100100.0,1.56518721]
[1733674719398,0.7216,100110.0,100100.0,1.65961864]
[1733674719902,0.90128499,100110.0,100100.0,1.65961864]
[1733674720097,0.7216,100110.0,100100.0,1.65961864]
[1733674720897,0.7216,100110.0,100100.0,1.65961861]
[1733674721403,0.90131744,100110.0,100100.0,1.65961861]
[1733674721598,0.90131744,100110.0,100100.0,1.83757309]
[1733674721901,0.90131744,100110.0,100100.0,1.65961861]
[1733674723499,0.90131744,100110.0,100100.0,1.67816379]
[1733674723500,0.93020472,100110.0,100100.0,1.67816379]
[1733674723801,0.7216,100110.0,100100.0,1.67816379]
[1733674725099,0.7216,100110.0,100100.0,1.67816348]
[1733674725603,0.7216,100110.0,100100.0,1.6700475]
[1733674725795,0.7316,100110.0,100100.0,1.67816348]
[1733674726105,0.17972295,100110.0,100100.0,0.45601307]
[1733674726400,0.32946048,100110.0,100100.0,0.78460899]
[1733674726599,0.32946048,100110.0,100100.0,2.28460899]
[1733674727001,0.32946048,100110.0,100100.0,2.27960899]
[1733674727600,0.32946048,100110.0,100100.0,2.21608224]
[1733674727803,0.32946048,100110.0,100100.0,2.21608122]
[1733674728098,0.26944496,100110.0,100100.0,2.27848297]
[1733674728307,0.26944496,100110.0,100100.0,2.27036801]
[1733674728498,0.26944496,100110.0,100100.0,2.27848297]
[1733674728697,0.26944496,100110.0,100100.0,2.63928297]
[1733674728898,0.20948263,100110.0,100100.0,2.46132849]
[1733674729100,0.20948263,100110.0,100100.0,2.64305654]
[1733674729507,0.20948263,100110.0,100100.0,2.64405654]
[1733674729702,0.18701196,100110.0,100100.0,2.65341931]
[1733674730597,0.18701196,100110.0,100100.0,2.64405654]
[1733674731310,0.18701196,100110.0,100100.0,2.644056]
[1733674732307,0.0897752,100110.0,100100.0,2.644056]
[1733674733303,0.0897752,100110.0,100100.0,2.58165425]
[1733674733798,0.3708,100110.0,100100.0,1.95468508]
[1733674733998,0.52053753,100110.0,100100.0,1.68288204]
[1733674734207,0.52053753,100110.0,100100.0,1.77731347]
[1733674734507,0.70026048,100110.0,100100.0,1.67741836]
[1733674735005,0.70026048,100110.0,100100.0,1.67641836]
[1733674735399,0.69026048,100110.0,100100.0,1.77631347]
[1733674735599,0.14973753,100110.0,100100.0,1.77231347]
[1733674735999,0.55052295,100120.0,100110.0,0.044921]
[1733674736000,0.71026048,100120.0,100110.0,0.044921]
[1733674736199,0.70026048,100120.0,100110.0,0.14746685]
[1733674738305,0.69026048,100120.0,100110.0,0.14746685]
[1733674738506,0.52053753,100120.0,100110.0,0.24770842]
[1733674739209,0.52053753,100120.0,100110.0,1.74770842]
[1733674740006,0.52053753,100120.0,100110.0,1.76608045]
[1733674740500,0.52053753,100120.0,100110.0,1.76708045]
[1733674741412,0.52053753,100120.0,100110.0,1.76408073]
[1733674741803,0.52053753,100120.0,100110.0,0.05139214]
[1733674742117,0.51053753,100120.0,100110.0,0.05103573]
[1733674742311,0.51053753,100120.0,100110.0,1.55103573]
[1733674742810,0.55545353,100120.0,100110.0,1.55103573]
[1733674743205,0.73517648,100120.0,100110.0,1.55103573]
[1733674743411,0.50014743,100120.0,100110.0,0.00811473]
[1733674743615,0.405716,100120.0,100110.0,0.00811473]
[1733674743810,0.61432072,100120.0,100110.0,1.55303573]
[1733674744013,0.58706913,100120.0,100110.0,1.55303573]
[1733674744317,0.59106913,100120.0,100110.0,1.55303573]
[1733674744721,0.14946088,100120.0,100110.0,2.94668034]
[1733674744922,0.2313,100160.0,100110.0,3.11994829]
[1733674745217,0.121,100160.0,100150.0,0.50013443]
[1733674745607,0.121,100160.0,100150.0,0.044903]
[1733674745814,0.121,100160.0,100150.0,0.04989668]
[1733674746014,0.121,100160.0,100150.0,0.14432811]
[1733674746210,0.121,100160.0,100150.0,0.15368956]
[1733674747823,0.165898,100160.0,100150.0,0.05925813]
[1733674748119,0.643498,100160.0,100150.0,0.15368956]
[1733674748722,0.643498,100160.0,100150.0,0.05925813]
[1733674748918,0.643498,100160.0,100150.0,0.15368956]
[1733674749115,0.644498,100160.0,100150.0,0.15368956]
[1733674749317,0.286698,100160.0,100150.0,1.64744916]
[1733674749516,0.647498,100160.0,100150.0,1.64744916]
[1733674749718,0.947498,100160.0,100150.0,0.00811473]
[1733674750419,0.947498,100160.0,100150.0,0.00499251]
[1733674750820,0.947498,100160.0,100150.0,0.00811283]
[1733674752221,0.947498,100160.0,100140.0,1.64933643]
[1733674752430,0.528003,100150.0,100140.0,1.63933643]
[1733674753021,0.528003,100150.0,100140.0,1.544905]
[1733674753531,0.528003,100150.0,100140.0,1.63933643]
[1733674753821,0.528003,100150.0,100140.0,1.65056976]
[1733674754014,0.528003,100150.0,100140.0,1.64557719]
[1733674754219,0.528003,100150.0,100140.0,1.64245683]
[1733674754419,0.528003,100150.0,100140.0,1.64744948]
[1733674755126,0.4831,100150.0,100140.0,1.64744948]
[1733674757430,0.4831,100150.0,100140.0,0.14744948]
[1733674757431,0.1223,100150.0,100140.0,0.14744948]
[1733674758333,0.1223,100150.0,100140.0,1.64744948]
[1733674760026,0.1223,100150.0,100140.0,2.00824948]
[1733674760227,0.5986,100160.0,100150.0,0.044903]
[1733674760529,0.4818,100160.0,100150.0,0.14245463]
[1733674760728,0.4818,100160.0,100150.0,0.13933443]
[1733674760928,0.4818,100160.0,100150.0,0.14432667]
[1733674761133,0.4818,100160.0,100150.0,0.14744682]
[1733674761328,0.4858,100160.0,100150.0,0.14744682]
[1733674762229,0.4878,100160.0,100150.0,0.14744682]
[1733674762626,0.532698,100160.0,100150.0,0.14744682]
[1733674762827,0.532698,100160.0,100150.0,0.05301539]
[1733674763733,0.532698,100160.0,100150.0,0.05301555]
[1733674765232,0.532698,100160.0,100150.0,0.14744698]
[1733674766440,0.532698,100160.0,100150.0,0.05301555]
[1733674767034,0.532698,100160.0,100150.0,0.0530158]
[1733674769429,0.532698,100160.0,100150.0,0.0081128]
[1733674770028,0.92712943,100160.0,100150.0,0.0081128]
[1733674770234,1.10602605,100160.0,100140.0,0.025]
[1733674770435,0.62713443,100150.0,100140.0,0.01999301]
[1733674770636,0.044907,100140.0,100130.0,0.025]
[1733674770838,0.044907,100140.0,100120.0,1.57141319]
[1733674770839,0.044912,100130.0,100120.0,1.57141319]
[1733674771037,0.405712,100130.0,100120.0,1.72379659]
[1733674771235,0.405712,100130.0,100120.0,1.54641319]
[1733674771436,0.405712,100130.0,100120.0,1.72379659]
[1733674771643,0.405712,100130.0,100120.0,1.54641319]
[1733674772231,0.406712,100130.0,100120.0,1.55941319]
[1733674773632,0.50114343,100130.0,100120.0,1.51449819]
[1733674773838,0.531012,100130.0,100120.0,1.509]
[1733674774345,0.70990862,100130.0,100120.0,1.509]
[1733674774739,0.70890862,100130.0,100120.0,1.5]
[1733674775048,0.85833866,100130.0,100120.0,1.5]
[1733674775249,0.95277009,100130.0,100120.0,1.5]
[1733674775448,0.77987347,100130.0,100120.0,1.5]
[1733674777148,0.68544204,100130.0,100120.0,1.544916]
[1733674778963,0.536012,100130.0,100120.0,1.544916]
[1733674780963,0.536012,100130.0,100120.0,1.54990956]
[1733674782264,0.536012,100130.0,100120.0,1.55303054]
[1733674784363,0.536012,100130.0,100120.0,1.64746197]
[1733674784564,0.3668,100130.0,100120.0,1.64746197]
[1733674784966,0.3668,100130.0,100120.0,1.65607835]
[1733674787056,0.3668,100130.0,100120.0,1.65295723]
[1733674787261,0.3668,100130.0,100120.0,1.65607811]
[1733674788669,0.3668,100130.0,100120.0,1.55353238]
[1733674788970,0.3668,100130.0,100120.0,1.56164668]
[1733674789876,0.48621216,100130.0,100120.0,1.56164668]
[1733674790771,0.48621216,100130.0,100120.0,1.55665326]
[1733674790974,0.48621216,100130.0,100120.0,1.56164667]
[1733674794260,0.53112416,100130.0,100120.0,0.06164667]
[1733674794468,0.68040584,100130.0,100120.0,0.05303029]
[1733674796264,0.56099368,100130.0,100120.0,0.05303029]
[1733674797475,0.56099368,100130.0,100120.0,0.2303072]
[1733674797682,0.56099368,100130.0,100120.0,0.05303029]
[1733674798171,0.7401317,100130.0,100120.0,0.05303029]
[1733674798565,0.59085002,100130.0,100120.0,0.05303029]
[1733674800274,0.59085002,100130.0,100120.0,1.55303029]
[1733674800575,0.411712,100130.0,100120.0,1.55303029]
[1733674801776,0.59131627,100130.0,100120.0,1.55303029]
[1733674803179,0.59131627,100130.0,100120.0,0.05303029]
[1733674803779,0.59131627,100130.0,100120.0,1.55303029]
[1733674804078,0.59131627,100130.0,100120.0,1.55303147]
[1733674804278,0.59131627,100130.0,100120.0,1.5561528]
[1733674804477,0.59131627,100130.0,100120.0,1.56114694]